{"text_format":"1","workbook":"xlsx","n_sheets":7,"sheets":["SURGICAL_ALL (10)","Sheet1","Sheet2","Sheet3","Sheet4","Sheet5","Sheet6"],"not_rendered":{"charts":0,"images":0,"macros":1,"external_links":0,"defined_names":2,"comments":0,"pivot_tables":0},"unopened":[],"bounds":{"document_bytes":16777216,"sheet_cells":100000,"rows_first":2000,"rows_last":500,"rows_between":2000,"halvings":0,"cell_chars":16384,"cell_head_chars":4096},"cells_cut":0,"cells_raw":0,"read":"whole","date_system":"1900"}

{"sheet":"SURGICAL_ALL (10)","index":0,"n_rows":40,"n_cols":110,"rows_kept":40,"cut":false,"hidden":false,"merged":[[1,0,1,3],[2,0,2,3],[3,0,3,3],[0,6,0,20]]}
[null,null,2020,null,null,null,"July"]
["DAYS",null,null,null,null,null,{"$f":"G3","v":"2020-07-01"},{"$f":"H3","v":"2020-07-02"},"2020-07-03","2020-07-04","2020-07-05","2020-07-06","2020-07-07","2020-07-08","2020-07-09","2020-07-10","2020-07-11","2020-07-12","2020-07-13","2020-07-14","2020-07-15","2020-07-16","2020-07-17","2020-07-18","2020-07-19","2020-07-20","2020-07-21","2020-07-22","2020-07-23","2020-07-24","2020-07-25","2020-07-26","2020-07-27","2020-07-28","2020-07-29","2020-07-30","2020-07-31"]
[{"$f":"\"GREGORIAN :\"    &$G$1","v":"GREGORIAN :July"},null,null,null,null,null,{"$f":"DATE($C$1,VLOOKUP($G$1,$AW$5:$AX$16,2,0),1)","v":"2020-07-01"},{"$f":"G3+1","v":"2020-07-02"},{"$f":"IFERROR(IF((H3+1)>EOMONTH($G$3,0),\"\",H3+1),\"\")","v":"2020-07-03"},{"$f":"IFERROR(IF((I3+1)>EOMONTH($G$3,0),\"\",I3+1),\"\")","v":"2020-07-04"},"2020-07-05","2020-07-06","2020-07-07","2020-07-08","2020-07-09","2020-07-10","2020-07-11","2020-07-12","2020-07-13","2020-07-14","2020-07-15","2020-07-16","2020-07-17","2020-07-18","2020-07-19","2020-07-20","2020-07-21","2020-07-22","2020-07-23","2020-07-24","2020-07-25","2020-07-26","2020-07-27","2020-07-28","2020-07-29","2020-07-30","2020-07-31"]
["DHU-ALQA'DAH/DHU-AL-HIJJAH",null,null,null,null,null,{"$f":"G3","v":"2020-07-01"},{"$f":"H3","v":"2020-07-02"},"2020-07-03","2020-07-04","2020-07-05","2020-07-06","2020-07-07","2020-07-08","2020-07-09","2020-07-10","2020-07-11","2020-07-12","2020-07-13","2020-07-14","2020-07-15","2020-07-16","2020-07-17","2020-07-18","2020-07-19","2020-07-20","2020-07-21","2020-07-22","2020-07-23","2020-07-24","2020-07-25","2020-07-26","2020-07-27","2020-07-28","2020-07-29","2020-07-30","2020-07-31"]
[null,"NAME","ID","QUAL","DES","M/S",null,null,null,null,null,null,null,null,null,null,null,null,null,null,null,null,null,null,null,null,null,null,null,null,null,null,null,null,null,null,null,null,"OFF","M","A","N",null,null,null,null,null,null,"January",1]
[1,"Bushra Julaih",3820119,"DIPLOMA",null,"M","M","M","X","X","M","M","M","M","M","X","X","M","M","M","M","M","X","X","M","M","M","M","M","X","X","M","M ","M","M","M","X",null,{"$f":"COUNTIFS(G6:AK6,\"X\")","v":9},{"$f":"COUNTIFS(G6:AK6,\"M\")","v":21},{"$f":"COUNTIFS(G6:AK6,\"A\")","v":0},{"$f":"COUNTIFS(G6:AK6,\"N\")","v":0},null,null,null,null,null,null,"February",2]
[2,"Ali Al-Yateem",3801694,"DIPLOMA",null,"M","M","M","X","X","M","M","M","M","M","X","X","N","N","N","N","N","N","X","X",null,null,null,null,null,null,null,null,null,null,null,null,null,{"$f":"COUNTIFS(G7:AK7,\"X\")","v":6},{"$f":"COUNTIFS(G7:AK7,\"M\")","v":7},{"$f":"COUNTIFS(G7:AK7,\"A\")","v":0},{"$f":"COUNTIFS(G7:AK7,\"N\")","v":6},null,null,null,null,null,null,"March",3]
[3,"Abdulkarim Anaki",3804826,"DIPLOMA",null,"M",null,null,null,null,null,null,null,null,null,null,null,null,null,null,null,null,null,null,null,null,null,null,null,null,null,null,null,null,null,null,null,null,0,0,0,0,null,null,null,null,null,null,"April",4,null,null,null,null,null,null,null,null,null,null,null,null,null,null,null,null,null,null,null,null,null,null,null,null,null,null,null,null,null,null,null,null,null,null,null,null,null,null,null,null,null,null,null,null,null,null,null,null,null,null,null,null,null,null,null,null,null,null,null,"LLLLLLLLLLLLLLLLLLLLLLLLLIOIOIOIOIOIOIOIOIOIOIOIOIOIOIOIOIOIOIOIOLLLLL;"]
[4,"Abdulla Al-Jaffal",12835,"DIPLOMA",null,"S",null,null,null,null,null,null,null,null,null,null,null,null,null,null,null,null,null,null,null,null,null,null,null,null,null,null,null,null,null,null,null,null,0,0,0,0,null,null,null,null,null,null,"May",5]
[5,"Ali Al-Baqshi",3821300,"OR TECH",null,"M",null,null,null,null,null,null,null,null,null,null,null,null,null,null,null,null,null,null,null,null,null,null,null,null,null,null,null,null,null,null,null,null,0,0,{"$f":"COUNTIFS(G10:AK10,\"A\")","v":0},0,null,null,null,null,null,null,"June",6]
[6,"Amani Al-Saeed",3818093,"DIPLOMA",null,"M",null,null,null,null,null,null,null,null,null,null,null,null,null,null,null,null,null,null,null,null,null,null,null,null,null,null,null,null,null,null,null,null,0,0,0,0,null,null,null,null,null,null,"July",7]
[7,"Essa Nasser",3801380,"OR TECH",null,"M",null,null,null,null,null,null,null,null,null,null,null,null,null,null,null,null,null,null,null,null,null,null,null,null,null,null,null,null,null,null,null,null,0,0,0,0,null,null,null,null,null,null,"August",8]
[8,"Fathia Hassan",3808655,"DIPLOMA",null,"M",null,null,null,null,null,null,null,null,null,null,null,null,null,null,null,null,null,null,null,null,null,null,null,null,null,null,null,null,null,null,null,null,0,0,0,0,null,null,null,null,null,null,"September",9]
[9,"Hani Al-Nasser",3831905,"DIPLOMA",null,"M",null,null,null,null,null,null,null,null,null,null,null,null,null,null,null,null,null,null,null,null,null,null,null,null,null,null,null,null,null,null,null,null,0,0,0,0,null,null,null,null,null,null,"October",10]
[10,"Huda Abdulaziz",3809481,"DIPLOMA",null,"M",null,null,null,null,null,null,null,null,null,null,null,null,null,null,null,null,null,null,null,null,null,null,null,null,null,null,null,null,null,null,null,null,0,0,0,0,null,null,null,null,null,null,"November",11]
[11,"Jamila Nasser",3805844,"DIPLOMA",null,"M",null,null,null,null,null,null,null,null,null,null,null,null,null,null,null,null,null,null,null,null,null,null,null,null,null,null,null,null,null,null,null,null,0,0,0,0,null,null,null,null,null,null,"December",12]
[12,"Laila Al-Bori",3809532,"DIPLOMA",null,"M",null,null,null,null,null,null,null,null,null,null,null,null,null,null,null,null,null,null,null,null,null,null,null,null,null,null,null,null,null,null,null,null,0,0,0,0]
[13,"Leena Al-Mubasher",3828490,"DIPLOMA",null,"M","N","N","N","N","X","X","X",null,null,null,null,null,null,null,null,null,null,null,null,null,null,null,null,null,null,null,null,null,null,null,null,null,3,0,0,4]
[14,"Mahmood Haji",3821262,"OR TECH",null,"M",null,null,null,null,null,null,null,null,null,null,null,null,null,null,null,null,null,null,null,null,null,null,null,null,null,null,null,null,null,null,null,null,0,0,0,0]
[15,"Moh'd Dhaif",4825019,"OR TECH",null,"M","A","A","A","X","X","A","A","A","A","A","X","X",null,null,null,null,null,null,null,null,null,null,null,null,null,null,null,null,null,null,null,null,4,0,8,0]
[16,"Moh'd Mohanna",3821301,"OR TECH",null,"M",null,null,null,null,null,null,null,null,null,null,null,null,null,null,null,null,null,null,null,null,null,null,null,null,null,null,null,null,null,null,null,null,0,0,0,0]
[17,"Masooma Adnan",3810282,"DIPLOMA",null,"M",null,null,null,null,null,null,null,null,null,null,null,null,null,null,null,null,null,null,null,null,null,null,null,null,null,null,null,null,null,null,null,null,0,0,0,0]
[18,"Munat Jaffar",3805768,"DIPLOMA",null,"M",null,null,null,null,null,null,null,null,null,null,null,null,null,null,null,null,null,null,null,null,null,null,null,null,null,null,null,null,null,null,null,null,0,0,0,0]
[19,"Mustafa Suwyilh",1491735,"OR TECH",null,"S",null,null,null,null,null,null,null,null,null,null,null,null,null,null,null,null,null,null,null,null,null,null,null,null,null,null,null,null,null,null,null,null,0,0,0,0]
[20,"Nafisa Al-Fardan",3810471,"BSN",null,"M",null,null,null,null,null,null,null,null,null,null,null,null,null,null,null,null,null,null,null,null,null,null,null,null,null,null,null,null,null,null,null,null,0,0,0,0]
[21,"Reda Al-Salman",3814041,"OR TECH",null,"M","M","M","X","X","M","M","M","M","M","X","X","M","M","M","M","M","X","X","M","M","M","M","M","X","X","M","M","M","M","M","X",null,9,22,0,0]
[22,"Zahra Al-Qallaf",3810396,"BSN",null,"M",null,null,null,null,null,null,null,null,null,null,null,null,null,null,null,null,null,null,null,null,null,null,null,null,null,null,null,null,null,null,null,null,0,0,0,0]
[23,"Zahra Hassan",3840743,"DIPLOMA",null,"M",null,null,null,null,null,null,null,null,null,null,null,null,null,null,null,null,null,null,null,null,null,null,null,null,null,null,null,null,null,null,null,null,0,0,0,0]
[24,"Zahra'a Al-Marshoud",3819198,"DIPLOMA",null,"M",null,null,null,null,null,null,null,null,null,null,null,null,null,null,null,null,null,null,null,null,null,null,null,null,null,null,null,null,null,null,null,null,0,0,0,0]
[25,"Zainab Al-Dubaisi",110124,"DIPLOMA",null,"M",null,null,null,null,null,null,null,null,null,null,null,null,null,null,null,null,null,null,null,null,null,null,null,null,null,null,null,null,null,null,null,null,0,0,0,0]
[26,"Zhara Abdulhadi Al Emsaed",82261,"BSN",null,"S",null,null,null,null,null,null,null,null,null,null,null,null,null,null,null,null,null,null,null,null,null,null,null,null,null,null,null,null,null,null,null,null,0,0,0,0]
[27,"Hawra AlMaskin",51543371,null,null,null,null,null,null,null,null,null,null,null,null,null,null,null,null,null,null,null,null,null,null,null,null,null,null,null,null,null,null,null,null,null,null,null,0,0,0,0]
[28,"Mustafa Almanasef",null,null,null,null,null,null,null,null,null,null,null,null,null,null,null,null,null,null,null,null,null,null,null,null,null,null,null,null,null,null,null,null,null,null,null,null,0,0,0,0]
[29,"Alia Al-Madeh",3841257,"NURSE AID",null,"M",null,null,null,null,null,null,null,null,null,null,null,null,null,null,null,null,null,null,null,null,null,null,null,null,null,null,null,null,null,null,null,null,0,0,0,0]
[30,"Rasmia Al-Moalim",3829984,"NURSE AID",null,"M",null,null,null,null,null,null,null,null,null,null,null,null,null,null,null,null,null,null,null,null,null,null,null,null,null,null,null,null,null,null,null,null,0,0,0,0]
[null,"M",null,null,null,null,{"$f":"COUNTIFS(G6:G35,\"M\")","v":3},{"$f":"COUNTIFS(H6:H35,\"M\")","v":3},0,0,3,3,3,3,3,0,0,2,2,2,2,2,0,0,2,2,2,2,2,0,0,2,1,2,2,2,0]
[null,"A",null,null,null,null,{"$f":"COUNTIFS(G6:G35,\"A\")","v":1},{"$f":"COUNTIFS(H6:H35,\"A\")","v":1},1,0,0,1,1,1,1,1,0,0,0,0,0,0,0,0,0,0,0,0,0,0,0,0,0,0,0,0,0]
[null,"N",null,null,null,null,{"$f":"COUNTIFS(G6:G35,\"N\")","v":1},{"$f":"COUNTIFS(H6:H35,\"N\")","v":1},1,1,0,0,0,0,0,0,0,1,1,1,1,1,1,0,0,0,0,0,0,0,0,0,0,0,0,0,0]
["PREPARED BY: "]
[null,"Bushra julaih",null,null,null,"CHECKED BY"]

{"sheet":"Sheet1","index":1,"n_rows":40,"n_cols":110,"rows_kept":40,"cut":false,"hidden":false,"merged":[[0,15,0,23],[2,2,2,3],[3,2,3,5]]}
[]
["DAYS",null,null,null,null,null,"WED ","THU","FRI","SAT","SUN","MON","TUE","WED ","THU","FRI","SAT","SUN","MON","TUE","WED ","THU","FRI","SAT","SUN","MON","TUE","WED ","THU","FRI","SAT","SUN","MON","TUE","WED ","THU","FRI"]
["GREGORIAN :  ",null,"  JULY",null,null,null,1,2,3,4,5,6,7,8,9,10,11,12,13,14,15,16,17,18,19,20,21,22,23,24,25,26,27,28,29,30,31]
["DHU-ALQA'DAH/DHU-AL-HIJJAH",null,null,null,null,null,10,11,12,13,14,15,16,17,18,19,20,21,22,23,24,25,26,27,28,29,30,1,2,3,4,5,6,7,8,9,10]
[null,"NAME","ID","QUAL","DES","M/S",null,null,null,null,null,null,null,null,null,null,null,null,null,null,null,null,null,null,null,null,null,null,null,null,null,null,null,null,null,null,null,null,"OFF","M","A","N"]
[1,null,null,"DIPLOMA",null,"M","M","M","X","X","M","M","M","M","M","X","X","M","M","M","M","M","X","X","M","M","M","M","M","X","X","M","M ","M","M","M","X",null,{"$f":"COUNTIFS(G6:AK6,\"X\")","v":9},{"$f":"COUNTIFS(G6:AK6,\"M\")","v":21},{"$f":"COUNTIFS(G6:AK6,\"A\")","v":0},{"$f":"COUNTIFS(G6:AK6,\"N\")","v":0}]
[2,null,null,"DIPLOMA",null,"M","M","M","X","X","M","M","M","M","M","X","X","N","N","N","N","N","N","X","X",null,null,null,null,null,null,null,null,null,null,null,null,null,{"$f":"COUNTIFS(G7:AK7,\"X\")","v":6},{"$f":"COUNTIFS(G7:AK7,\"M\")","v":7},{"$f":"COUNTIFS(G7:AK7,\"A\")","v":0},{"$f":"COUNTIFS(G7:AK7,\"N\")","v":6}]
[3,null,null,"DIPLOMA",null,"M",null,null,null,null,null,null,null,null,null,null,null,null,null,null,null,null,null,null,null,null,null,null,null,null,null,null,null,null,null,null,null,null,0,0,0,0,null,null,null,null,null,null,null,null,null,null,null,null,null,null,null,null,null,null,null,null,null,null,null,null,null,null,null,null,null,null,null,null,null,null,null,null,null,null,null,null,null,null,null,null,null,null,null,null,null,null,null,null,null,null,null,null,null,null,null,null,null,null,null,null,null,null,null,"LLLLLLLLLLLLLLLLLLLLLLLLLIOIOIOIOIOIOIOIOIOIOIOIOIOIOIOIOIOIOIOIOLLLLL;"]
[4,null,null,"DIPLOMA",null,"S",null,null,null,null,null,null,null,null,null,null,null,null,null,null,null,null,null,null,null,null,null,null,null,null,null,null,null,null,null,null,null,null,0,0,0,0]
[5,null,null,"OR TECH",null,"M",null,null,null,null,null,null,null,null,null,null,null,null,null,null,null,null,null,null,null,null,null,null,null,null,null,null,null,null,null,null,null,null,0,0,{"$f":"COUNTIFS(G10:AK10,\"A\")","v":0},0]
[6,null,null,"DIPLOMA",null,"M",null,null,null,null,null,null,null,null,null,null,null,null,null,null,null,null,null,null,null,null,null,null,null,null,null,null,null,null,null,null,null,null,0,0,0,0]
[7,null,null,"OR TECH",null,"M",null,null,null,null,null,null,null,null,null,null,null,null,null,null,null,null,null,null,null,null,null,null,null,null,null,null,null,null,null,null,null,null,0,0,0,0]
[8,null,null,"DIPLOMA",null,"M",null,null,null,null,null,null,null,null,null,null,null,null,null,null,null,null,null,null,null,null,null,null,null,null,null,null,null,null,null,null,null,null,0,0,0,0]
[9,null,null,"DIPLOMA",null,"M",null,null,null,null,null,null,null,null,null,null,null,null,null,null,null,null,null,null,null,null,null,null,null,null,null,null,null,null,null,null,null,null,0,0,0,0]
[10,null,null,"DIPLOMA",null,"M",null,null,null,null,null,null,null,null,null,null,null,null,null,null,null,null,null,null,null,null,null,null,null,null,null,null,null,null,null,null,null,null,0,0,0,0]
[11,null,null,"DIPLOMA",null,"M",null,null,null,null,null,null,null,null,null,null,null,null,null,null,null,null,null,null,null,null,null,null,null,null,null,null,null,null,null,null,null,null,0,0,0,0]
[12,null,null,"DIPLOMA",null,"M",null,null,null,null,null,null,null,null,null,null,null,null,null,null,null,null,null,null,null,null,null,null,null,null,null,null,null,null,null,null,null,null,0,0,0,0]
[13,null,null,"DIPLOMA",null,"M","N","N","N","N","X","X","X",null,null,null,null,null,null,null,null,null,null,null,null,null,null,null,null,null,null,null,null,null,null,null,null,null,3,0,0,4]
[14,null,null,"OR TECH",null,"M",null,null,null,null,null,null,null,null,null,null,null,null,null,null,null,null,null,null,null,null,null,null,null,null,null,null,null,null,null,null,null,null,0,0,0,0]
[15,null,null,"OR TECH",null,"M","A","A","A","X","X","A","A","A","A","A","X","X","V",null,null,null,null,null,null,null,null,null,null,null,null,null,null,null,null,null,null,null,4,0,8,0]
[16,null,null,"OR TECH",null,"M",null,null,null,null,null,null,null,null,null,null,null,null,null,null,null,null,null,null,null,null,null,null,null,null,null,null,null,null,null,null,null,null,0,0,0,0]
[17,null,null,"DIPLOMA",null,"M",null,null,null,null,null,null,null,null,null,null,null,null,null,null,null,null,null,null,null,null,null,null,null,null,null,null,null,null,null,null,null,null,0,0,0,0]
[18,null,null,"DIPLOMA",null,"M",null,null,null,null,null,null,null,null,null,null,null,null,null,null,null,null,null,null,null,null,null,null,null,null,null,null,null,null,null,null,null,null,0,0,0,0]
[19,null,null,"OR TECH",null,"S",null,null,null,null,null,null,null,null,null,null,null,null,null,null,null,null,null,null,null,null,null,null,null,null,null,null,null,null,null,null,null,null,0,0,0,0]
[20,null,null,"BSN",null,"M",null,null,null,null,null,null,null,null,null,null,null,null,null,null,null,null,null,null,null,null,null,null,null,null,null,null,null,null,null,null,null,null,0,0,0,0]
[21,null,null,"OR TECH",null,"M","M","M","X","X","M","M","M","M","M","X","X","M","M","M","M","M","X","X","M","M","M","M","M","X","X","M","M","M","M","M","X",null,9,22,0,0]
[22,null,null,"BSN",null,"M",null,null,null,null,null,null,null,null,null,null,null,null,null,null,null,null,null,null,null,null,null,null,null,null,null,null,null,null,null,null,null,null,0,0,0,0]
[23,null,null,"DIPLOMA",null,"M",null,null,null,null,null,null,null,null,null,null,null,null,null,null,null,null,null,null,null,null,null,null,null,null,null,null,null,null,null,null,null,null,0,0,0,0]
[24,null,null,"DIPLOMA",null,"M",null,null,null,null,null,null,null,null,null,null,null,null,null,null,null,null,null,null,null,null,null,null,null,null,null,null,null,null,null,null,null,null,0,0,0,0]
[25,null,null,"DIPLOMA",null,"M",null,null,null,null,null,null,null,null,null,null,null,null,null,null,null,null,null,null,null,null,null,null,null,null,null,null,null,null,null,null,null,null,0,0,0,0]
[26,null,null,"BSN",null,"S",null,null,null,null,null,null,null,null,null,null,null,null,null,null,null,null,null,null,null,null,null,null,null,null,null,null,null,null,null,null,null,null,0,0,0,0]
[27,null,null,null,null,null,null,null,null,null,null,null,null,null,null,null,null,null,null,null,null,null,null,null,null,null,null,null,null,null,null,null,null,null,null,null,null,null,0,0,0,0]
[28,null,null,null,null,null,null,null,null,null,null,null,null,null,null,null,null,null,null,null,null,null,null,null,null,null,null,null,null,null,null,null,null,null,null,null,null,null,0,0,0,0]
[29,null,null,"NURSE AID",null,"M",null,null,null,null,null,null,null,null,null,null,null,null,null,null,null,null,null,null,null,null,null,null,null,null,null,null,null,null,null,null,null,null,0,0,0,0]
[30,null,null,"NURSE AID",null,"M",null,null,null,null,null,null,null,null,null,null,null,null,null,null,null,null,null,null,null,null,null,null,null,null,null,null,null,null,null,null,null,null,0,0,0,0]
[null,"M",null,null,null,null,{"$f":"COUNTIFS(G6:G35,\"M\")","v":3},{"$f":"COUNTIFS(H6:H35,\"M\")","v":3},0,0,3,3,3,3,3,0,0,2,2,2,2,2,0,0,2,2,2,2,2,0,0,2,1,2,2,2,0]
[null,"A",null,null,null,null,{"$f":"COUNTIFS(G6:G35,\"A\")","v":1},{"$f":"COUNTIFS(H6:H35,\"A\")","v":1},1,0,0,1,1,1,1,1,0,0,0,0,0,0,0,0,0,0,0,0,0,0,0,0,0,0,0,0,0]
[null,"N",null,null,null,null,{"$f":"COUNTIFS(G6:G35,\"N\")","v":1},{"$f":"COUNTIFS(H6:H35,\"N\")","v":1},1,1,0,0,0,0,0,0,0,1,1,1,1,1,1,0,0,0,0,0,0,0,0,0,0,0,0,0,0]
["PREPARED BY: "]
[null,null,null,null,null,"CHECKED BY"]

{"sheet":"Sheet2","index":2,"n_rows":40,"n_cols":110,"rows_kept":40,"cut":false,"hidden":false,"merged":[[1,0,1,3],[2,0,2,3],[3,0,3,3]]}
[null,null,null,null,null,null,null,null,null,null,null,null,"July"]
["DAYS",null,null,null,null,null,"WED ","THU","FRI","SAT","SUN","MON","TUE","WED ","THU","FRI","SAT","SUN","MON","TUE","WED ","THU","FRI","SAT","SUN","MON","TUE","WED ","THU","FRI","SAT","SUN","MON","TUE","WED ","THU","FRI"]
["GREGORIAN :    JULY",null,null,null,null,null,1,2,3,4,5,6,7,8,9,10,11,12,13,14,15,16,17,18,19,20,21,22,23,24,25,26,27,28,29,30,31]
["DHU-ALQA'DAH/DHU-AL-HIJJAH",null,null,null,null,null,10,11,12,13,14,15,16,17,18,19,20,21,22,23,24,25,26,27,28,29,30,1,2,3,4,5,6,7,8,9,10]
[null,"NAME","ID","QUAL","DES","M/S",null,null,null,null,null,null,null,null,null,null,null,null,null,null,null,null,null,null,null,null,null,null,null,null,null,null,null,null,null,null,null,null,"OFF","M","A","N"]
[1,"Bushra Julaih",3820119,"DIPLOMA",null,"M","M","M","X","X","M","M","M","M","M","X","X","M","M","M","M","M","X","X","M","M","M","M","M","X","X","M","M ","M","M","M","X",null,{"$f":"COUNTIFS(G6:AK6,\"X\")","v":9},{"$f":"COUNTIFS(G6:AK6,\"M\")","v":21},{"$f":"COUNTIFS(G6:AK6,\"A\")","v":0},{"$f":"COUNTIFS(G6:AK6,\"N\")","v":0}]
[2,"Ali Al-Yateem",3801694,"DIPLOMA",null,"M","M","M","X","X","M","M","M","M","M","X","X","N","N","N","N","N","N","X","X",null,null,null,null,null,null,null,null,null,null,null,null,null,{"$f":"COUNTIFS(G7:AK7,\"X\")","v":6},{"$f":"COUNTIFS(G7:AK7,\"M\")","v":7},{"$f":"COUNTIFS(G7:AK7,\"A\")","v":0},{"$f":"COUNTIFS(G7:AK7,\"N\")","v":6}]
[3,"Abdulkarim Anaki",3804826,"DIPLOMA",null,"M",null,null,null,null,null,null,null,null,null,null,null,null,null,null,null,null,null,null,null,null,null,null,null,null,null,null,null,null,null,null,null,null,0,0,0,0,null,null,null,null,null,null,null,null,null,null,null,null,null,null,null,null,null,null,null,null,null,null,null,null,null,null,null,null,null,null,null,null,null,null,null,null,null,null,null,null,null,null,null,null,null,null,null,null,null,null,null,null,null,null,null,null,null,null,null,null,null,null,null,null,null,null,null,"LLLLLLLLLLLLLLLLLLLLLLLLLIOIOIOIOIOIOIOIOIOIOIOIOIOIOIOIOIOIOIOIOLLLLL;"]
[4,"Abdulla Al-Jaffal",12835,"DIPLOMA",null,"S",null,null,null,null,null,null,null,null,null,null,null,null,null,null,null,null,null,null,null,null,null,null,null,null,null,null,null,null,null,null,null,null,0,0,0,0]
[5,"Ali Al-Baqshi",3821300,"OR TECH",null,"M",null,null,null,null,null,null,null,null,null,null,null,null,null,null,null,null,null,null,null,null,null,null,null,null,null,null,null,null,null,null,null,null,0,0,{"$f":"COUNTIFS(G10:AK10,\"A\")","v":0},0]
[6,"Amani Al-Saeed",3818093,"DIPLOMA",null,"M",null,null,null,null,null,null,null,null,null,null,null,null,null,null,null,null,null,null,null,null,null,null,null,null,null,null,null,null,null,null,null,null,0,0,0,0]
[7,"Essa Nasser",3801380,"OR TECH",null,"M",null,null,null,null,null,null,null,null,null,null,null,null,null,null,null,null,null,null,null,null,null,null,null,null,null,null,null,null,null,null,null,null,0,0,0,0]
[8,"Fathia Hassan",3808655,"DIPLOMA",null,"M",null,null,null,null,null,null,null,null,null,null,null,null,null,null,null,null,null,null,null,null,null,null,null,null,null,null,null,null,null,null,null,null,0,0,0,0]
[9,"Hani Al-Nasser",3831905,"DIPLOMA",null,"M",null,null,null,null,null,null,null,null,null,null,null,null,null,null,null,null,null,null,null,null,null,null,null,null,null,null,null,null,null,null,null,null,0,0,0,0]
[10,"Huda Abdulaziz",3809481,"DIPLOMA",null,"M",null,null,null,null,null,null,null,null,null,null,null,null,null,null,null,null,null,null,null,null,null,null,null,null,null,null,null,null,null,null,null,null,0,0,0,0]
[11,"Jamila Nasser",3805844,"DIPLOMA",null,"M",null,null,null,null,null,null,null,null,null,null,null,null,null,null,null,null,null,null,null,null,null,null,null,null,null,null,null,null,null,null,null,null,0,0,0,0]
[12,"Laila Al-Bori",3809532,"DIPLOMA",null,"M",null,null,null,null,null,null,null,null,null,null,null,null,null,null,null,null,null,null,null,null,null,null,null,null,null,null,null,null,null,null,null,null,0,0,0,0]
[13,"Leena Al-Mubasher",3828490,"DIPLOMA",null,"M","N","N","N","N","X","X","X",null,null,null,null,null,null,null,null,null,null,null,null,null,null,null,null,null,null,null,null,null,null,null,null,null,3,0,0,4]
[14,"Mahmood Haji",3821262,"OR TECH",null,"M",null,null,null,null,null,null,null,null,null,null,null,null,null,null,null,null,null,null,null,null,null,null,null,null,null,null,null,null,null,null,null,null,0,0,0,0]
[15,"Moh'd Dhaif",4825019,"OR TECH",null,"M","A","A","A","X","X","A","A","A","A","A","X","X",null,null,null,null,null,null,null,null,null,null,null,null,null,null,null,null,null,null,null,null,4,0,8,0]
[16,"Moh'd Mohanna",3821301,"OR TECH",null,"M",null,null,null,null,null,null,null,null,null,null,null,null,null,null,null,null,null,null,null,null,null,null,null,null,null,null,null,null,null,null,null,null,0,0,0,0]
[17,"Masooma Adnan",3810282,"DIPLOMA",null,"M",null,null,null,null,null,null,null,null,null,null,null,null,null,null,null,null,null,null,null,null,null,null,null,null,null,null,null,null,null,null,null,null,0,0,0,0]
[18,"Munat Jaffar",3805768,"DIPLOMA",null,"M",null,null,null,null,null,null,null,null,null,null,null,null,null,null,null,null,null,null,null,null,null,null,null,null,null,null,null,null,null,null,null,null,0,0,0,0]
[19,"Mustafa Suwyilh",1491735,"OR TECH",null,"S",null,null,null,null,null,null,null,null,null,null,null,null,null,null,null,null,null,null,null,null,null,null,null,null,null,null,null,null,null,null,null,null,0,0,0,0]
[20,"Nafisa Al-Fardan",3810471,"BSN",null,"M",null,null,null,null,null,null,null,null,null,null,null,null,null,null,null,null,null,null,null,null,null,null,null,null,null,null,null,null,null,null,null,null,0,0,0,0]
[21,"Reda Al-Salman",3814041,"OR TECH",null,"M","M","M","X","X","M","M","M","M","M","X","X","M","M","M","M","M","X","X","M","M","M","M","M","X","X","M","M","M","M","M","X",null,9,22,0,0]
[22,"Zahra Al-Qallaf",3810396,"BSN",null,"M",null,null,null,null,null,null,null,null,null,null,null,null,null,null,null,null,null,null,null,null,null,null,null,null,null,null,null,null,null,null,null,null,0,0,0,0]
[23,"Zahra Hassan",3840743,"DIPLOMA",null,"M",null,null,null,null,null,null,null,null,null,null,null,null,null,null,null,null,null,null,null,null,null,null,null,null,null,null,null,null,null,null,null,null,0,0,0,0]
[24,"Zahra'a Al-Marshoud",3819198,"DIPLOMA",null,"M",null,null,null,null,null,null,null,null,null,null,null,null,null,null,null,null,null,null,null,null,null,null,null,null,null,null,null,null,null,null,null,null,0,0,0,0]
[25,"Zainab Al-Dubaisi",110124,"DIPLOMA",null,"M",null,null,null,null,null,null,null,null,null,null,null,null,null,null,null,null,null,null,null,null,null,null,null,null,null,null,null,null,null,null,null,null,0,0,0,0]
[26,"Zhara Abdulhadi Al Emsaed",82261,"BSN",null,"S",null,null,null,null,null,null,null,null,null,null,null,null,null,null,null,null,null,null,null,null,null,null,null,null,null,null,null,null,null,null,null,null,0,0,0,0]
[27,"Hawra AlMaskin",51543371,null,null,null,null,null,null,null,null,null,null,null,null,null,null,null,null,null,null,null,null,null,null,null,null,null,null,null,null,null,null,null,null,null,null,null,0,0,0,0]
[28,"Mustafa Almanasef",null,null,null,null,null,null,null,null,null,null,null,null,null,null,null,null,null,null,null,null,null,null,null,null,null,null,null,null,null,null,null,null,null,null,null,null,0,0,0,0]
[29,"Alia Al-Madeh",3841257,"NURSE AID",null,"M",null,null,null,null,null,null,null,null,null,null,null,null,null,null,null,null,null,null,null,null,null,null,null,null,null,null,null,null,null,null,null,null,0,0,0,0]
[30,"Rasmia Al-Moalim",3829984,"NURSE AID",null,"M",null,null,null,null,null,null,null,null,null,null,null,null,null,null,null,null,null,null,null,null,null,null,null,null,null,null,null,null,null,null,null,null,0,0,0,0]
[null,"M",null,null,null,null,{"$f":"COUNTIFS(G6:G35,\"M\")","v":3},{"$f":"COUNTIFS(H6:H35,\"M\")","v":3},0,0,3,3,3,3,3,0,0,2,2,2,2,2,0,0,2,2,2,2,2,0,0,2,1,2,2,2,0]
[null,"A",null,null,null,null,{"$f":"COUNTIFS(G6:G35,\"A\")","v":1},{"$f":"COUNTIFS(H6:H35,\"A\")","v":1},1,0,0,1,1,1,1,1,0,0,0,0,0,0,0,0,0,0,0,0,0,0,0,0,0,0,0,0,0]
[null,"N",null,null,null,null,{"$f":"COUNTIFS(G6:G35,\"N\")","v":1},{"$f":"COUNTIFS(H6:H35,\"N\")","v":1},1,1,0,0,0,0,0,0,0,1,1,1,1,1,1,0,0,0,0,0,0,0,0,0,0,0,0,0,0]
["PREPARED BY: "]
[null,"Bushra julaih",null,null,null,"CHECKED BY"]

{"sheet":"Sheet3","index":3,"n_rows":40,"n_cols":110,"rows_kept":40,"cut":false,"hidden":false,"merged":[[1,0,1,3],[2,0,2,3],[3,0,3,3]]}
[null,null,null,null,null,null,null,null,null,null,null,null,"July"]
["DAYS",null,null,null,null,null,"WED ","THU","FRI","SAT","SUN","MON","TUE","WED ","THU","FRI","SAT","SUN","MON","TUE","WED ","THU","FRI","SAT","SUN","MON","TUE","WED ","THU","FRI","SAT","SUN","MON","TUE","WED ","THU","FRI"]
["GREGORIAN :    JULY",null,null,null,null,null,1,2,3,4,5,6,7,8,9,10,11,12,13,14,15,16,17,18,19,20,21,22,23,24,25,26,27,28,29,30,31]
["DHU-ALQA'DAH/DHU-AL-HIJJAH",null,null,null,null,null,10,11,12,13,14,15,16,17,18,19,20,21,22,23,24,25,26,27,28,29,30,1,2,3,4,5,6,7,8,9,10]
[null,"NAME","ID","QUAL","DES","M/S",null,null,null,null,null,null,null,null,null,null,null,null,null,null,null,null,null,null,null,null,null,null,null,null,null,null,null,null,null,null,null,null,"OFF","M","A","N"]
[1,"Bushra Julaih",3820119,"DIPLOMA",null,"M","M","M","X","X","M","M","M","M","M","X","X","M","M","M","M","M","X","X","M","M","M","M","M","X","X","M","M ","M","M","M","X",null,{"$f":"COUNTIFS(G6:AK6,\"X\")","v":9},{"$f":"COUNTIFS(G6:AK6,\"M\")","v":21},{"$f":"COUNTIFS(G6:AK6,\"A\")","v":0},{"$f":"COUNTIFS(G6:AK6,\"N\")","v":0}]
[2,"Ali Al-Yateem",3801694,"DIPLOMA",null,"M","M","M","X","X","M","M","M","M","M","X","X","N","N","N","N","N","N","X","X",null,null,null,null,null,null,null,null,null,null,null,null,null,{"$f":"COUNTIFS(G7:AK7,\"X\")","v":6},{"$f":"COUNTIFS(G7:AK7,\"M\")","v":7},{"$f":"COUNTIFS(G7:AK7,\"A\")","v":0},{"$f":"COUNTIFS(G7:AK7,\"N\")","v":6}]
[3,"Abdulkarim Anaki",3804826,"DIPLOMA",null,"M",null,null,null,null,null,null,null,null,null,null,null,null,null,null,null,null,null,null,null,null,null,null,null,null,null,null,null,null,null,null,null,null,0,0,0,0,null,null,null,null,null,null,null,null,null,null,null,null,null,null,null,null,null,null,null,null,null,null,null,null,null,null,null,null,null,null,null,null,null,null,null,null,null,null,null,null,null,null,null,null,null,null,null,null,null,null,null,null,null,null,null,null,null,null,null,null,null,null,null,null,null,null,null,"LLLLLLLLLLLLLLLLLLLLLLLLLIOIOIOIOIOIOIOIOIOIOIOIOIOIOIOIOIOIOIOIOLLLLL;"]
[4,"Abdulla Al-Jaffal",12835,"DIPLOMA",null,"S",null,null,null,null,null,null,null,null,null,null,null,null,null,null,null,null,null,null,null,null,null,null,null,null,null,null,null,null,null,null,null,null,0,0,0,0]
[5,"Ali Al-Baqshi",3821300,"OR TECH",null,"M",null,null,null,null,null,null,null,null,null,null,null,null,null,null,null,null,null,null,null,null,null,null,null,null,null,null,null,null,null,null,null,null,0,0,{"$f":"COUNTIFS(G10:AK10,\"A\")","v":0},0]
[6,"Amani Al-Saeed",3818093,"DIPLOMA",null,"M",null,null,null,null,null,null,null,null,null,null,null,null,null,null,null,null,null,null,null,null,null,null,null,null,null,null,null,null,null,null,null,null,0,0,0,0]
[7,"Essa Nasser",3801380,"OR TECH",null,"M",null,null,null,null,null,null,null,null,null,null,null,null,null,null,null,null,null,null,null,null,null,null,null,null,null,null,null,null,null,null,null,null,0,0,0,0]
[8,"Fathia Hassan",3808655,"DIPLOMA",null,"M",null,null,null,null,null,null,null,null,null,null,null,null,null,null,null,null,null,null,null,null,null,null,null,null,null,null,null,null,null,null,null,null,0,0,0,0]
[9,"Hani Al-Nasser",3831905,"DIPLOMA",null,"M",null,null,null,null,null,null,null,null,null,null,null,null,null,null,null,null,null,null,null,null,null,null,null,null,null,null,null,null,null,null,null,null,0,0,0,0]
[10,"Huda Abdulaziz",3809481,"DIPLOMA",null,"M",null,null,null,null,null,null,null,null,null,null,null,null,null,null,null,null,null,null,null,null,null,null,null,null,null,null,null,null,null,null,null,null,0,0,0,0]
[11,"Jamila Nasser",3805844,"DIPLOMA",null,"M",null,null,null,null,null,null,null,null,null,null,null,null,null,null,null,null,null,null,null,null,null,null,null,null,null,null,null,null,null,null,null,null,0,0,0,0]
[12,"Laila Al-Bori",3809532,"DIPLOMA",null,"M",null,null,null,null,null,null,null,null,null,null,null,null,null,null,null,null,null,null,null,null,null,null,null,null,null,null,null,null,null,null,null,null,0,0,0,0]
[13,"Leena Al-Mubasher",3828490,"DIPLOMA",null,"M","N","N","N","N","X","X","X",null,null,null,null,null,null,null,null,null,null,null,null,null,null,null,null,null,null,null,null,null,null,null,null,null,3,0,0,4]
[14,"Mahmood Haji",3821262,"OR TECH",null,"M",null,null,null,null,null,null,null,null,null,null,null,null,null,null,null,null,null,null,null,null,null,null,null,null,null,null,null,null,null,null,null,null,0,0,0,0]
[15,"Moh'd Dhaif",4825019,"OR TECH",null,"M","A","A","A","X","X","A","A","A","A","A","X","X",null,null,null,null,null,null,null,null,null,null,null,null,null,null,null,null,null,null,null,null,4,0,8,0]
[16,"Moh'd Mohanna",3821301,"OR TECH",null,"M",null,null,null,null,null,null,null,null,null,null,null,null,null,null,null,null,null,null,null,null,null,null,null,null,null,null,null,null,null,null,null,null,0,0,0,0]
[17,"Masooma Adnan",3810282,"DIPLOMA",null,"M",null,null,null,null,null,null,null,null,null,null,null,null,null,null,null,null,null,null,null,null,null,null,null,null,null,null,null,null,null,null,null,null,0,0,0,0]
[18,"Munat Jaffar",3805768,"DIPLOMA",null,"M",null,null,null,null,null,null,null,null,null,null,null,null,null,null,null,null,null,null,null,null,null,null,null,null,null,null,null,null,null,null,null,null,0,0,0,0]
[19,"Mustafa Suwyilh",1491735,"OR TECH",null,"S",null,null,null,null,null,null,null,null,null,null,null,null,null,null,null,null,null,null,null,null,null,null,null,null,null,null,null,null,null,null,null,null,0,0,0,0]
[20,"Nafisa Al-Fardan",3810471,"BSN",null,"M",null,null,null,null,null,null,null,null,null,null,null,null,null,null,null,null,null,null,null,null,null,null,null,null,null,null,null,null,null,null,null,null,0,0,0,0]
[21,"Reda Al-Salman",3814041,"OR TECH",null,"M","M","M","X","X","M","M","M","M","M","X","X","M","M","M","M","M","X","X","M","M","M","M","M","X","X","M","M","M","M","M","X",null,9,22,0,0]
[22,"Zahra Al-Qallaf",3810396,"BSN",null,"M",null,null,null,null,null,null,null,null,null,null,null,null,null,null,null,null,null,null,null,null,null,null,null,null,null,null,null,null,null,null,null,null,0,0,0,0]
[23,"Zahra Hassan",3840743,"DIPLOMA",null,"M",null,null,null,null,null,null,null,null,null,null,null,null,null,null,null,null,null,null,null,null,null,null,null,null,null,null,null,null,null,null,null,null,0,0,0,0]
[24,"Zahra'a Al-Marshoud",3819198,"DIPLOMA",null,"M",null,null,null,null,null,null,null,null,null,null,null,null,null,null,null,null,null,null,null,null,null,null,null,null,null,null,null,null,null,null,null,null,0,0,0,0]
[25,"Zainab Al-Dubaisi",110124,"DIPLOMA",null,"M",null,null,null,null,null,null,null,null,null,null,null,null,null,null,null,null,null,null,null,null,null,null,null,null,null,null,null,null,null,null,null,null,0,0,0,0]
[26,"Zhara Abdulhadi Al Emsaed",82261,"BSN",null,"S",null,null,null,null,null,null,null,null,null,null,null,null,null,null,null,null,null,null,null,null,null,null,null,null,null,null,null,null,null,null,null,null,0,0,0,0]
[27,"Hawra AlMaskin",51543371,null,null,null,null,null,null,null,null,null,null,null,null,null,null,null,null,null,null,null,null,null,null,null,null,null,null,null,null,null,null,null,null,null,null,null,0,0,0,0]
[28,"Mustafa Almanasef",null,null,null,null,null,null,null,null,null,null,null,null,null,null,null,null,null,null,null,null,null,null,null,null,null,null,null,null,null,null,null,null,null,null,null,null,0,0,0,0]
[29,"Alia Al-Madeh",3841257,"NURSE AID",null,"M",null,null,null,null,null,null,null,null,null,null,null,null,null,null,null,null,null,null,null,null,null,null,null,null,null,null,null,null,null,null,null,null,0,0,0,0]
[30,"Rasmia Al-Moalim",3829984,"NURSE AID",null,"M",null,null,null,null,null,null,null,null,null,null,null,null,null,null,null,null,null,null,null,null,null,null,null,null,null,null,null,null,null,null,null,null,0,0,0,0]
[null,"M",null,null,null,null,{"$f":"COUNTIFS(G6:G35,\"M\")","v":3},{"$f":"COUNTIFS(H6:H35,\"M\")","v":3},0,0,3,3,3,3,3,0,0,2,2,2,2,2,0,0,2,2,2,2,2,0,0,2,1,2,2,2,0]
[null,"A",null,null,null,null,{"$f":"COUNTIFS(G6:G35,\"A\")","v":1},{"$f":"COUNTIFS(H6:H35,\"A\")","v":1},1,0,0,1,1,1,1,1,0,0,0,0,0,0,0,0,0,0,0,0,0,0,0,0,0,0,0,0,0]
[null,"N",null,null,null,null,{"$f":"COUNTIFS(G6:G35,\"N\")","v":1},{"$f":"COUNTIFS(H6:H35,\"N\")","v":1},1,1,0,0,0,0,0,0,0,1,1,1,1,1,1,0,0,0,0,0,0,0,0,0,0,0,0,0,0]
["PREPARED BY: "]
[null,"Bushra julaih",null,null,null,"CHECKED BY"]

{"sheet":"Sheet4","index":4,"n_rows":40,"n_cols":110,"rows_kept":40,"cut":false,"hidden":false,"merged":[[1,0,1,3],[2,0,2,3],[3,0,3,3]]}
[null,null,null,null,null,null,null,null,null,null,null,null,"July"]
["DAYS",null,null,null,null,null,"WED ","THU","FRI","SAT","SUN","MON","TUE","WED ","THU","FRI","SAT","SUN","MON","TUE","WED ","THU","FRI","SAT","SUN","MON","TUE","WED ","THU","FRI","SAT","SUN","MON","TUE","WED ","THU","FRI"]
["GREGORIAN :    JULY",null,null,null,null,null,1,2,3,4,5,6,7,8,9,10,11,12,13,14,15,16,17,18,19,20,21,22,23,24,25,26,27,28,29,30,31]
["DHU-ALQA'DAH/DHU-AL-HIJJAH",null,null,null,null,null,10,11,12,13,14,15,16,17,18,19,20,21,22,23,24,25,26,27,28,29,30,1,2,3,4,5,6,7,8,9,10]
[null,"NAME","ID","QUAL","DES","M/S",null,null,null,null,null,null,null,null,null,null,null,null,null,null,null,null,null,null,null,null,null,null,null,null,null,null,null,null,null,null,null,null,"OFF","M","A","N"]
[1,"Bushra Julaih",3820119,"DIPLOMA",null,"M","M","M","X","X","M","M","M","M","M","X","X","M","M","M","M","M","X","X","M","M","M","M","M","X","X","M","M ","M","M","M","X",null,{"$f":"COUNTIFS(G6:AK6,\"X\")","v":9},{"$f":"COUNTIFS(G6:AK6,\"M\")","v":21},{"$f":"COUNTIFS(G6:AK6,\"A\")","v":0},{"$f":"COUNTIFS(G6:AK6,\"N\")","v":0}]
[2,"Ali Al-Yateem",3801694,"DIPLOMA",null,"M","M","M","X","X","M","M","M","M","M","X","X","N","N","N","N","N","N","X","X",null,null,null,null,null,null,null,null,null,null,null,null,null,{"$f":"COUNTIFS(G7:AK7,\"X\")","v":6},{"$f":"COUNTIFS(G7:AK7,\"M\")","v":7},{"$f":"COUNTIFS(G7:AK7,\"A\")","v":0},{"$f":"COUNTIFS(G7:AK7,\"N\")","v":6}]
[3,"Abdulkarim Anaki",3804826,"DIPLOMA",null,"M",null,null,null,null,null,null,null,null,null,null,null,null,null,null,null,null,null,null,null,null,null,null,null,null,null,null,null,null,null,null,null,null,0,0,0,0,null,null,null,null,null,null,null,null,null,null,null,null,null,null,null,null,null,null,null,null,null,null,null,null,null,null,null,null,null,null,null,null,null,null,null,null,null,null,null,null,null,null,null,null,null,null,null,null,null,null,null,null,null,null,null,null,null,null,null,null,null,null,null,null,null,null,null,"LLLLLLLLLLLLLLLLLLLLLLLLLIOIOIOIOIOIOIOIOIOIOIOIOIOIOIOIOIOIOIOIOLLLLL;"]
[4,"Abdulla Al-Jaffal",12835,"DIPLOMA",null,"S",null,null,null,null,null,null,null,null,null,null,null,null,null,null,null,null,null,null,null,null,null,null,null,null,null,null,null,null,null,null,null,null,0,0,0,0]
[5,"Ali Al-Baqshi",3821300,"OR TECH",null,"M",null,null,null,null,null,null,null,null,null,null,null,null,null,null,null,null,null,null,null,null,null,null,null,null,null,null,null,null,null,null,null,null,0,0,{"$f":"COUNTIFS(G10:AK10,\"A\")","v":0},0]
[6,"Amani Al-Saeed",3818093,"DIPLOMA",null,"M",null,null,null,null,null,null,null,null,null,null,null,null,null,null,null,null,null,null,null,null,null,null,null,null,null,null,null,null,null,null,null,null,0,0,0,0]
[7,"Essa Nasser",3801380,"OR TECH",null,"M",null,null,null,null,null,null,null,null,null,null,null,null,null,null,null,null,null,null,null,null,null,null,null,null,null,null,null,null,null,null,null,null,0,0,0,0]
[8,"Fathia Hassan",3808655,"DIPLOMA",null,"M",null,null,null,null,null,null,null,null,null,null,null,null,null,null,null,null,null,null,null,null,null,null,null,null,null,null,null,null,null,null,null,null,0,0,0,0]
[9,"Hani Al-Nasser",3831905,"DIPLOMA",null,"M",null,null,null,null,null,null,null,null,null,null,null,null,null,null,null,null,null,null,null,null,null,null,null,null,null,null,null,null,null,null,null,null,0,0,0,0]
[10,"Huda Abdulaziz",3809481,"DIPLOMA",null,"M",null,null,null,null,null,null,null,null,null,null,null,null,null,null,null,null,null,null,null,null,null,null,null,null,null,null,null,null,null,null,null,null,0,0,0,0]
[11,"Jamila Nasser",3805844,"DIPLOMA",null,"M",null,null,null,null,null,null,null,null,null,null,null,null,null,null,null,null,null,null,null,null,null,null,null,null,null,null,null,null,null,null,null,null,0,0,0,0]
[12,"Laila Al-Bori",3809532,"DIPLOMA",null,"M",null,null,null,null,null,null,null,null,null,null,null,null,null,null,null,null,null,null,null,null,null,null,null,null,null,null,null,null,null,null,null,null,0,0,0,0]
[13,"Leena Al-Mubasher",3828490,"DIPLOMA",null,"M","N","N","N","N","X","X","X",null,null,null,null,null,null,null,null,null,null,null,null,null,null,null,null,null,null,null,null,null,null,null,null,null,3,0,0,4]
[14,"Mahmood Haji",3821262,"OR TECH",null,"M",null,null,null,null,null,null,null,null,null,null,null,null,null,null,null,null,null,null,null,null,null,null,null,null,null,null,null,null,null,null,null,null,0,0,0,0]
[15,"Moh'd Dhaif",4825019,"OR TECH",null,"M","A","A","A","X","X","A","A","A","A","A","X","X",null,null,null,null,null,null,null,null,null,null,null,null,null,null,null,null,null,null,null,null,4,0,8,0]
[16,"Moh'd Mohanna",3821301,"OR TECH",null,"M",null,null,null,null,null,null,null,null,null,null,null,null,null,null,null,null,null,null,null,null,null,null,null,null,null,null,null,null,null,null,null,null,0,0,0,0]
[17,"Masooma Adnan",3810282,"DIPLOMA",null,"M",null,null,null,null,null,null,null,null,null,null,null,null,null,null,null,null,null,null,null,null,null,null,null,null,null,null,null,null,null,null,null,null,0,0,0,0]
[18,"Munat Jaffar",3805768,"DIPLOMA",null,"M",null,null,null,null,null,null,null,null,null,null,null,null,null,null,null,null,null,null,null,null,null,null,null,null,null,null,null,null,null,null,null,null,0,0,0,0]
[19,"Mustafa Suwyilh",1491735,"OR TECH",null,"S",null,null,null,null,null,null,null,null,null,null,null,null,null,null,null,null,null,null,null,null,null,null,null,null,null,null,null,null,null,null,null,null,0,0,0,0]
[20,"Nafisa Al-Fardan",3810471,"BSN",null,"M",null,null,null,null,null,null,null,null,null,null,null,null,null,null,null,null,null,null,null,null,null,null,null,null,null,null,null,null,null,null,null,null,0,0,0,0]
[21,"Reda Al-Salman",3814041,"OR TECH",null,"M","M","M","X","X","M","M","M","M","M","X","X","M","M","M","M","M","X","X","M","M","M","M","M","X","X","M","M","M","M","M","X",null,9,22,0,0]
[22,"Zahra Al-Qallaf",3810396,"BSN",null,"M",null,null,null,null,null,null,null,null,null,null,null,null,null,null,null,null,null,null,null,null,null,null,null,null,null,null,null,null,null,null,null,null,0,0,0,0]
[23,"Zahra Hassan",3840743,"DIPLOMA",null,"M",null,null,null,null,null,null,null,null,null,null,null,null,null,null,null,null,null,null,null,null,null,null,null,null,null,null,null,null,null,null,null,null,0,0,0,0]
[24,"Zahra'a Al-Marshoud",3819198,"DIPLOMA",null,"M",null,null,null,null,null,null,null,null,null,null,null,null,null,null,null,null,null,null,null,null,null,null,null,null,null,null,null,null,null,null,null,null,0,0,0,0]
[25,"Zainab Al-Dubaisi",110124,"DIPLOMA",null,"M",null,null,null,null,null,null,null,null,null,null,null,null,null,null,null,null,null,null,null,null,null,null,null,null,null,null,null,null,null,null,null,null,0,0,0,0]
[26,"Zhara Abdulhadi Al Emsaed",82261,"BSN",null,"S",null,null,null,null,null,null,null,null,null,null,null,null,null,null,null,null,null,null,null,null,null,null,null,null,null,null,null,null,null,null,null,null,0,0,0,0]
[27,"Hawra AlMaskin",51543371,null,null,null,null,null,null,null,null,null,null,null,null,null,null,null,null,null,null,null,null,null,null,null,null,null,null,null,null,null,null,null,null,null,null,null,0,0,0,0]
[28,"Mustafa Almanasef",null,null,null,null,null,null,null,null,null,null,null,null,null,null,null,null,null,null,null,null,null,null,null,null,null,null,null,null,null,null,null,null,null,null,null,null,0,0,0,0]
[29,"Alia Al-Madeh",3841257,"NURSE AID",null,"M",null,null,null,null,null,null,null,null,null,null,null,null,null,null,null,null,null,null,null,null,null,null,null,null,null,null,null,null,null,null,null,null,0,0,0,0]
[30,"Rasmia Al-Moalim",3829984,"NURSE AID",null,"M",null,null,null,null,null,null,null,null,null,null,null,null,null,null,null,null,null,null,null,null,null,null,null,null,null,null,null,null,null,null,null,null,0,0,0,0]
[null,"M",null,null,null,null,{"$f":"COUNTIFS(G6:G35,\"M\")","v":3},{"$f":"COUNTIFS(H6:H35,\"M\")","v":3},0,0,3,3,3,3,3,0,0,2,2,2,2,2,0,0,2,2,2,2,2,0,0,2,1,2,2,2,0]
[null,"A",null,null,null,null,{"$f":"COUNTIFS(G6:G35,\"A\")","v":1},{"$f":"COUNTIFS(H6:H35,\"A\")","v":1},1,0,0,1,1,1,1,1,0,0,0,0,0,0,0,0,0,0,0,0,0,0,0,0,0,0,0,0,0]
[null,"N",null,null,null,null,{"$f":"COUNTIFS(G6:G35,\"N\")","v":1},{"$f":"COUNTIFS(H6:H35,\"N\")","v":1},1,1,0,0,0,0,0,0,0,1,1,1,1,1,1,0,0,0,0,0,0,0,0,0,0,0,0,0,0]
["PREPARED BY: "]
[null,"Bushra julaih",null,null,null,"CHECKED BY"]

{"sheet":"Sheet5","index":5,"n_rows":40,"n_cols":110,"rows_kept":40,"cut":false,"hidden":false,"merged":[[1,0,1,3],[2,0,2,3],[3,0,3,3]]}
[null,null,null,null,null,null,null,null,null,null,null,null,"July"]
["DAYS",null,null,null,null,null,"WED ","THU","FRI","SAT","SUN","MON","TUE","WED ","THU","FRI","SAT","SUN","MON","TUE","WED ","THU","FRI","SAT","SUN","MON","TUE","WED ","THU","FRI","SAT","SUN","MON","TUE","WED ","THU","FRI"]
["GREGORIAN :    JULY",null,null,null,null,null,1,2,3,4,5,6,7,8,9,10,11,12,13,14,15,16,17,18,19,20,21,22,23,24,25,26,27,28,29,30,31]
["DHU-ALQA'DAH/DHU-AL-HIJJAH",null,null,null,null,null,10,11,12,13,14,15,16,17,18,19,20,21,22,23,24,25,26,27,28,29,30,1,2,3,4,5,6,7,8,9,10]
[null,"NAME","ID","QUAL","DES","M/S",null,null,null,null,null,null,null,null,null,null,null,null,null,null,null,null,null,null,null,null,null,null,null,null,null,null,null,null,null,null,null,null,"OFF","M","A","N"]
[1,"Bushra Julaih",3820119,"DIPLOMA",null,"M","M","M","X","X","M","M","M","M","M","X","X","M","M","M","M","M","X","X","M","M","M","M","M","X","X","M","M ","M","M","M","X",null,{"$f":"COUNTIFS(G6:AK6,\"X\")","v":9},{"$f":"COUNTIFS(G6:AK6,\"M\")","v":21},{"$f":"COUNTIFS(G6:AK6,\"A\")","v":0},{"$f":"COUNTIFS(G6:AK6,\"N\")","v":0}]
[2,"Ali Al-Yateem",3801694,"DIPLOMA",null,"M","M","M","X","X","M","M","M","M","M","X","X","N","N","N","N","N","N","X","X",null,null,null,null,null,null,null,null,null,null,null,null,null,{"$f":"COUNTIFS(G7:AK7,\"X\")","v":6},{"$f":"COUNTIFS(G7:AK7,\"M\")","v":7},{"$f":"COUNTIFS(G7:AK7,\"A\")","v":0},{"$f":"COUNTIFS(G7:AK7,\"N\")","v":6}]
[3,"Abdulkarim Anaki",3804826,"DIPLOMA",null,"M",null,null,null,null,null,null,null,null,null,null,null,null,null,null,null,null,null,null,null,null,null,null,null,null,null,null,null,null,null,null,null,null,0,0,0,0,null,null,null,null,null,null,null,null,null,null,null,null,null,null,null,null,null,null,null,null,null,null,null,null,null,null,null,null,null,null,null,null,null,null,null,null,null,null,null,null,null,null,null,null,null,null,null,null,null,null,null,null,null,null,null,null,null,null,null,null,null,null,null,null,null,null,null,"LLLLLLLLLLLLLLLLLLLLLLLLLIOIOIOIOIOIOIOIOIOIOIOIOIOIOIOIOIOIOIOIOLLLLL;"]
[4,"Abdulla Al-Jaffal",12835,"DIPLOMA",null,"S",null,null,null,null,null,null,null,null,null,null,null,null,null,null,null,null,null,null,null,null,null,null,null,null,null,null,null,null,null,null,null,null,0,0,0,0]
[5,"Ali Al-Baqshi",3821300,"OR TECH",null,"M",null,null,null,null,null,null,null,null,null,null,null,null,null,null,null,null,null,null,null,null,null,null,null,null,null,null,null,null,null,null,null,null,0,0,{"$f":"COUNTIFS(G10:AK10,\"A\")","v":0},0]
[6,"Amani Al-Saeed",3818093,"DIPLOMA",null,"M",null,null,null,null,null,null,null,null,null,null,null,null,null,null,null,null,null,null,null,null,null,null,null,null,null,null,null,null,null,null,null,null,0,0,0,0]
[7,"Essa Nasser",3801380,"OR TECH",null,"M",null,null,null,null,null,null,null,null,null,null,null,null,null,null,null,null,null,null,null,null,null,null,null,null,null,null,null,null,null,null,null,null,0,0,0,0]
[8,"Fathia Hassan",3808655,"DIPLOMA",null,"M",null,null,null,null,null,null,null,null,null,null,null,null,null,null,null,null,null,null,null,null,null,null,null,null,null,null,null,null,null,null,null,null,0,0,0,0]
[9,"Hani Al-Nasser",3831905,"DIPLOMA",null,"M",null,null,null,null,null,null,null,null,null,null,null,null,null,null,null,null,null,null,null,null,null,null,null,null,null,null,null,null,null,null,null,null,0,0,0,0]
[10,"Huda Abdulaziz",3809481,"DIPLOMA",null,"M",null,null,null,null,null,null,null,null,null,null,null,null,null,null,null,null,null,null,null,null,null,null,null,null,null,null,null,null,null,null,null,null,0,0,0,0]
[11,"Jamila Nasser",3805844,"DIPLOMA",null,"M",null,null,null,null,null,null,null,null,null,null,null,null,null,null,null,null,null,null,null,null,null,null,null,null,null,null,null,null,null,null,null,null,0,0,0,0]
[12,"Laila Al-Bori",3809532,"DIPLOMA",null,"M",null,null,null,null,null,null,null,null,null,null,null,null,null,null,null,null,null,null,null,null,null,null,null,null,null,null,null,null,null,null,null,null,0,0,0,0]
[13,"Leena Al-Mubasher",3828490,"DIPLOMA",null,"M","N","N","N","N","X","X","X",null,null,null,null,null,null,null,null,null,null,null,null,null,null,null,null,null,null,null,null,null,null,null,null,null,3,0,0,4]
[14,"Mahmood Haji",3821262,"OR TECH",null,"M",null,null,null,null,null,null,null,null,null,null,null,null,null,null,null,null,null,null,null,null,null,null,null,null,null,null,null,null,null,null,null,null,0,0,0,0]
[15,"Moh'd Dhaif",4825019,"OR TECH",null,"M","A","A","A","X","X","A","A","A","A","A","X","X",null,null,null,null,null,null,null,null,null,null,null,null,null,null,null,null,null,null,null,null,4,0,8,0]
[16,"Moh'd Mohanna",3821301,"OR TECH",null,"M",null,null,null,null,null,null,null,null,null,null,null,null,null,null,null,null,null,null,null,null,null,null,null,null,null,null,null,null,null,null,null,null,0,0,0,0]
[17,"Masooma Adnan",3810282,"DIPLOMA",null,"M",null,null,null,null,null,null,null,null,null,null,null,null,null,null,null,null,null,null,null,null,null,null,null,null,null,null,null,null,null,null,null,null,0,0,0,0]
[18,"Munat Jaffar",3805768,"DIPLOMA",null,"M",null,null,null,null,null,null,null,null,null,null,null,null,null,null,null,null,null,null,null,null,null,null,null,null,null,null,null,null,null,null,null,null,0,0,0,0]
[19,"Mustafa Suwyilh",1491735,"OR TECH",null,"S",null,null,null,null,null,null,null,null,null,null,null,null,null,null,null,null,null,null,null,null,null,null,null,null,null,null,null,null,null,null,null,null,0,0,0,0]
[20,"Nafisa Al-Fardan",3810471,"BSN",null,"M",null,null,null,null,null,null,null,null,null,null,null,null,null,null,null,null,null,null,null,null,null,null,null,null,null,null,null,null,null,null,null,null,0,0,0,0]
[21,"Reda Al-Salman",3814041,"OR TECH",null,"M","M","M","X","X","M","M","M","M","M","X","X","M","M","M","M","M","X","X","M","M","M","M","M","X","X","M","M","M","M","M","X",null,9,22,0,0]
[22,"Zahra Al-Qallaf",3810396,"BSN",null,"M",null,null,null,null,null,null,null,null,null,null,null,null,null,null,null,null,null,null,null,null,null,null,null,null,null,null,null,null,null,null,null,null,0,0,0,0]
[23,"Zahra Hassan",3840743,"DIPLOMA",null,"M",null,null,null,null,null,null,null,null,null,null,null,null,null,null,null,null,null,null,null,null,null,null,null,null,null,null,null,null,null,null,null,null,0,0,0,0]
[24,"Zahra'a Al-Marshoud",3819198,"DIPLOMA",null,"M",null,null,null,null,null,null,null,null,null,null,null,null,null,null,null,null,null,null,null,null,null,null,null,null,null,null,null,null,null,null,null,null,0,0,0,0]
[25,"Zainab Al-Dubaisi",110124,"DIPLOMA",null,"M",null,null,null,null,null,null,null,null,null,null,null,null,null,null,null,null,null,null,null,null,null,null,null,null,null,null,null,null,null,null,null,null,0,0,0,0]
[26,"Zhara Abdulhadi Al Emsaed",82261,"BSN",null,"S",null,null,null,null,null,null,null,null,null,null,null,null,null,null,null,null,null,null,null,null,null,null,null,null,null,null,null,null,null,null,null,null,0,0,0,0]
[27,"Hawra AlMaskin",51543371,null,null,null,null,null,null,null,null,null,null,null,null,null,null,null,null,null,null,null,null,null,null,null,null,null,null,null,null,null,null,null,null,null,null,null,0,0,0,0]
[28,"Mustafa Almanasef",null,null,null,null,null,null,null,null,null,null,null,null,null,null,null,null,null,null,null,null,null,null,null,null,null,null,null,null,null,null,null,null,null,null,null,null,0,0,0,0]
[29,"Alia Al-Madeh",3841257,"NURSE AID",null,"M",null,null,null,null,null,null,null,null,null,null,null,null,null,null,null,null,null,null,null,null,null,null,null,null,null,null,null,null,null,null,null,null,0,0,0,0]
[30,"Rasmia Al-Moalim",3829984,"NURSE AID",null,"M",null,null,null,null,null,null,null,null,null,null,null,null,null,null,null,null,null,null,null,null,null,null,null,null,null,null,null,null,null,null,null,null,0,0,0,0]
[null,"M",null,null,null,null,{"$f":"COUNTIFS(G6:G35,\"M\")","v":3},{"$f":"COUNTIFS(H6:H35,\"M\")","v":3},0,0,3,3,3,3,3,0,0,2,2,2,2,2,0,0,2,2,2,2,2,0,0,2,1,2,2,2,0]
[null,"A",null,null,null,null,{"$f":"COUNTIFS(G6:G35,\"A\")","v":1},{"$f":"COUNTIFS(H6:H35,\"A\")","v":1},1,0,0,1,1,1,1,1,0,0,0,0,0,0,0,0,0,0,0,0,0,0,0,0,0,0,0,0,0]
[null,"N",null,null,null,null,{"$f":"COUNTIFS(G6:G35,\"N\")","v":1},{"$f":"COUNTIFS(H6:H35,\"N\")","v":1},1,1,0,0,0,0,0,0,0,1,1,1,1,1,1,0,0,0,0,0,0,0,0,0,0,0,0,0,0]
["PREPARED BY: "]
[null,"Bushra julaih",null,null,null,"CHECKED BY"]

{"sheet":"Sheet6","index":6,"n_rows":40,"n_cols":110,"rows_kept":40,"cut":false,"hidden":false,"merged":[[1,0,1,3],[2,0,2,3],[3,0,3,3]]}
[null,null,null,null,null,null,null,null,null,null,null,null,"July"]
["DAYS",null,null,null,null,null,"WED ","THU","FRI","SAT","SUN","MON","TUE","WED ","THU","FRI","SAT","SUN","MON","TUE","WED ","THU","FRI","SAT","SUN","MON","TUE","WED ","THU","FRI","SAT","SUN","MON","TUE","WED ","THU","FRI"]
["GREGORIAN :    JULY",null,null,null,null,null,1,2,3,4,5,6,7,8,9,10,11,12,13,14,15,16,17,18,19,20,21,22,23,24,25,26,27,28,29,30,31]
["DHU-ALQA'DAH/DHU-AL-HIJJAH",null,null,null,null,null,10,11,12,13,14,15,16,17,18,19,20,21,22,23,24,25,26,27,28,29,30,1,2,3,4,5,6,7,8,9,10]
[null,"NAME","ID","QUAL","DES","M/S",null,null,null,null,null,null,null,null,null,null,null,null,null,null,null,null,null,null,null,null,null,null,null,null,null,null,null,null,null,null,null,null,"OFF","M","A","N"]
[1,"Bushra Julaih",3820119,"DIPLOMA",null,"M","M","M","X","X","M","M","M","M","M","X","X","M","M","M","M","M","X","X","M","M","M","M","M","X","X","M","M ","M","M","M","X",null,{"$f":"COUNTIFS(G6:AK6,\"X\")","v":9},{"$f":"COUNTIFS(G6:AK6,\"M\")","v":21},{"$f":"COUNTIFS(G6:AK6,\"A\")","v":0},{"$f":"COUNTIFS(G6:AK6,\"N\")","v":0}]
[2,"Ali Al-Yateem",3801694,"DIPLOMA",null,"M","M","M","X","X","M","M","M","M","M","X","X","N","N","N","N","N","N","X","X",null,null,null,null,null,null,null,null,null,null,null,null,null,{"$f":"COUNTIFS(G7:AK7,\"X\")","v":6},{"$f":"COUNTIFS(G7:AK7,\"M\")","v":7},{"$f":"COUNTIFS(G7:AK7,\"A\")","v":0},{"$f":"COUNTIFS(G7:AK7,\"N\")","v":6}]
[3,"Abdulkarim Anaki",3804826,"DIPLOMA",null,"M",null,null,null,null,null,null,null,null,null,null,null,null,null,null,null,null,null,null,null,null,null,null,null,null,null,null,null,null,null,null,null,null,0,0,0,0,null,null,null,null,null,null,null,null,null,null,null,null,null,null,null,null,null,null,null,null,null,null,null,null,null,null,null,null,null,null,null,null,null,null,null,null,null,null,null,null,null,null,null,null,null,null,null,null,null,null,null,null,null,null,null,null,null,null,null,null,null,null,null,null,null,null,null,"LLLLLLLLLLLLLLLLLLLLLLLLLIOIOIOIOIOIOIOIOIOIOIOIOIOIOIOIOIOIOIOIOLLLLL;"]
[4,"Abdulla Al-Jaffal",12835,"DIPLOMA",null,"S",null,null,null,null,null,null,null,null,null,null,null,null,null,null,null,null,null,null,null,null,null,null,null,null,null,null,null,null,null,null,null,null,0,0,0,0]
[5,"Ali Al-Baqshi",3821300,"OR TECH",null,"M",null,null,null,null,null,null,null,null,null,null,null,null,null,null,null,null,null,null,null,null,null,null,null,null,null,null,null,null,null,null,null,null,0,0,{"$f":"COUNTIFS(G10:AK10,\"A\")","v":0},0]
[6,"Amani Al-Saeed",3818093,"DIPLOMA",null,"M",null,null,null,null,null,null,null,null,null,null,null,null,null,null,null,null,null,null,null,null,null,null,null,null,null,null,null,null,null,null,null,null,0,0,0,0]
[7,"Essa Nasser",3801380,"OR TECH",null,"M",null,null,null,null,null,null,null,null,null,null,null,null,null,null,null,null,null,null,null,null,null,null,null,null,null,null,null,null,null,null,null,null,0,0,0,0]
[8,"Fathia Hassan",3808655,"DIPLOMA",null,"M",null,null,null,null,null,null,null,null,null,null,null,null,null,null,null,null,null,null,null,null,null,null,null,null,null,null,null,null,null,null,null,null,0,0,0,0]
[9,"Hani Al-Nasser",3831905,"DIPLOMA",null,"M",null,null,null,null,null,null,null,null,null,null,null,null,null,null,null,null,null,null,null,null,null,null,null,null,null,null,null,null,null,null,null,null,0,0,0,0]
[10,"Huda Abdulaziz",3809481,"DIPLOMA",null,"M",null,null,null,null,null,null,null,null,null,null,null,null,null,null,null,null,null,null,null,null,null,null,null,null,null,null,null,null,null,null,null,null,0,0,0,0]
[11,"Jamila Nasser",3805844,"DIPLOMA",null,"M",null,null,null,null,null,null,null,null,null,null,null,null,null,null,null,null,null,null,null,null,null,null,null,null,null,null,null,null,null,null,null,null,0,0,0,0]
[12,"Laila Al-Bori",3809532,"DIPLOMA",null,"M",null,null,null,null,null,null,null,null,null,null,null,null,null,null,null,null,null,null,null,null,null,null,null,null,null,null,null,null,null,null,null,null,0,0,0,0]
[13,"Leena Al-Mubasher",3828490,"DIPLOMA",null,"M","N","N","N","N","X","X","X",null,null,null,null,null,null,null,null,null,null,null,null,null,null,null,null,null,null,null,null,null,null,null,null,null,3,0,0,4]
[14,"Mahmood Haji",3821262,"OR TECH",null,"M",null,null,null,null,null,null,null,null,null,null,null,null,null,null,null,null,null,null,null,null,null,null,null,null,null,null,null,null,null,null,null,null,0,0,0,0]
[15,"Moh'd Dhaif",4825019,"OR TECH",null,"M","A","A","A","X","X","A","A","A","A","A","X","X",null,null,null,null,null,null,null,null,null,null,null,null,null,null,null,null,null,null,null,null,4,0,8,0]
[16,"Moh'd Mohanna",3821301,"OR TECH",null,"M",null,null,null,null,null,null,null,null,null,null,null,null,null,null,null,null,null,null,null,null,null,null,null,null,null,null,null,null,null,null,null,null,0,0,0,0]
[17,"Masooma Adnan",3810282,"DIPLOMA",null,"M",null,null,null,null,null,null,null,null,null,null,null,null,null,null,null,null,null,null,null,null,null,null,null,null,null,null,null,null,null,null,null,null,0,0,0,0]
[18,"Munat Jaffar",3805768,"DIPLOMA",null,"M",null,null,null,null,null,null,null,null,null,null,null,null,null,null,null,null,null,null,null,null,null,null,null,null,null,null,null,null,null,null,null,null,0,0,0,0]
[19,"Mustafa Suwyilh",1491735,"OR TECH",null,"S",null,null,null,null,null,null,null,null,null,null,null,null,null,null,null,null,null,null,null,null,null,null,null,null,null,null,null,null,null,null,null,null,0,0,0,0]
[20,"Nafisa Al-Fardan",3810471,"BSN",null,"M",null,null,null,null,null,null,null,null,null,null,null,null,null,null,null,null,null,null,null,null,null,null,null,null,null,null,null,null,null,null,null,null,0,0,0,0]
[21,"Reda Al-Salman",3814041,"OR TECH",null,"M","M","M","X","X","M","M","M","M","M","X","X","M","M","M","M","M","X","X","M","M","M","M","M","X","X","M","M","M","M","M","X",null,9,22,0,0]
[22,"Zahra Al-Qallaf",3810396,"BSN",null,"M",null,null,null,null,null,null,null,null,null,null,null,null,null,null,null,null,null,null,null,null,null,null,null,null,null,null,null,null,null,null,null,null,0,0,0,0]
[23,"Zahra Hassan",3840743,"DIPLOMA",null,"M",null,null,null,null,null,null,null,null,null,null,null,null,null,null,null,null,null,null,null,null,null,null,null,null,null,null,null,null,null,null,null,null,0,0,0,0]
[24,"Zahra'a Al-Marshoud",3819198,"DIPLOMA",null,"M",null,null,null,null,null,null,null,null,null,null,null,null,null,null,null,null,null,null,null,null,null,null,null,null,null,null,null,null,null,null,null,null,0,0,0,0]
[25,"Zainab Al-Dubaisi",110124,"DIPLOMA",null,"M",null,null,null,null,null,null,null,null,null,null,null,null,null,null,null,null,null,null,null,null,null,null,null,null,null,null,null,null,null,null,null,null,0,0,0,0]
[26,"Zhara Abdulhadi Al Emsaed",82261,"BSN",null,"S",null,null,null,null,null,null,null,null,null,null,null,null,null,null,null,null,null,null,null,null,null,null,null,null,null,null,null,null,null,null,null,null,0,0,0,0]
[27,"Hawra AlMaskin",51543371,null,null,null,null,null,null,null,null,null,null,null,null,null,null,null,null,null,null,null,null,null,null,null,null,null,null,null,null,null,null,null,null,null,null,null,0,0,0,0]
[28,"Mustafa Almanasef",null,null,null,null,null,null,null,null,null,null,null,null,null,null,null,null,null,null,null,null,null,null,null,null,null,null,null,null,null,null,null,null,null,null,null,null,0,0,0,0]
[29,"Alia Al-Madeh",3841257,"NURSE AID",null,"M",null,null,null,null,null,null,null,null,null,null,null,null,null,null,null,null,null,null,null,null,null,null,null,null,null,null,null,null,null,null,null,null,0,0,0,0]
[30,"Rasmia Al-Moalim",3829984,"NURSE AID",null,"M",null,null,null,null,null,null,null,null,null,null,null,null,null,null,null,null,null,null,null,null,null,null,null,null,null,null,null,null,null,null,null,null,0,0,0,0]
[null,"M",null,null,null,null,{"$f":"COUNTIFS(G6:G35,\"M\")","v":3},{"$f":"COUNTIFS(H6:H35,\"M\")","v":3},0,0,3,3,3,3,3,0,0,2,2,2,2,2,0,0,2,2,2,2,2,0,0,2,1,2,2,2,0]
[null,"A",null,null,null,null,{"$f":"COUNTIFS(G6:G35,\"A\")","v":1},{"$f":"COUNTIFS(H6:H35,\"A\")","v":1},1,0,0,1,1,1,1,1,0,0,0,0,0,0,0,0,0,0,0,0,0,0,0,0,0,0,0,0,0]
[null,"N",null,null,null,null,{"$f":"COUNTIFS(G6:G35,\"N\")","v":1},{"$f":"COUNTIFS(H6:H35,\"N\")","v":1},1,1,0,0,0,0,0,0,0,1,1,1,1,1,1,0,0,0,0,0,0,0,0,0,0,0,0,0,0]
["PREPARED BY: "]
[null,"Bushra julaih",null,null,null,"CHECKED BY"]